Cogmind - Beta 13 @@@ ROGUE MODE // 2024.04.27 @ 15:40:36 Player: Exceptionally Mediocre Result: Destroyed by G-50 Soldier with Heavy Laser Performance ------------- Evolutions (4) 2000 Regions Visited (12) 2400 Robots Destroyed (118) 590 Value Destroyed (3097) 3097 Prototype IDs (37) 740 Alien Tech Used (0) 0 Bonus (818) 818 TOTAL SCORE: 9645 Bonus ------- Follower Combat Kills 718 Aligned with FarCom 300 Friendly Fire -200 Cogmind --------- Core Integrity 0/850 Matter 252/300 Energy 46/100 System Corruption 2% Temperature Cool (9) Movement Flying (32) Location -6/Factory Parts ------- > --- POWER (1) -------- (None) > --- PROPULSION (6) --- Cooled VTOL Module Biomechanical Wings Improved Diametric Drive > --- UTILITY (6) ------ Enhanced Optical Array System Shield Improved System Shield > --- WEAPON (2) ------- (None) > --- INVENTORY (5) ---- Improved Diametric Drive Improved Diametric Drive Stasis Canceller Stasis Canceller System Shield Peak State ------------ > --- POWER ------------ Micro Nuclear Core > --- PROPULSION ------- Gravmag Array Gravmag Array Gravmag Array > --- UTILITY ---------- High-capacity Storage Unit Enhanced Optical Array Advanced Melee Analysis Suite Hacking Suite Hacking Suite Hacking Suite > --- WEAPON ----------- Ripper > --- INVENTORY -------- Heavy Armored Exoskeleton Gravmag Array Gravmag Array Gravmag Array Gravmag Array Improved VTOL Module Improved VTOL Module Improved Diametric Drive Medium Storage Unit Improved Cloaking Device Improved Recalibrator Gauss Cannon Spear [Rating: 69] Favorites ----------- Power Ion Engine Engine Ion Engine Power Core Light Nuclear Core Propulsion Light Treads Treads Light Treads Hover Unit Gravmag Array Flight Unit Improved VTOL Module Utility Huge Storage Unit Device Improved Heat Sink Storage Huge Storage Unit Processor Improved Targeting Computer Hackware Hacking Suite Protection Weapon Shielding Weapon Advanced Beam Cannon Energy Gun Particle Gun Energy Cannon Advanced Beam Cannon Ballistic Gun Enhanced Autogun Ballistic Cannon Advanced Assault Cannon Launcher Rocket Launcher Slashing Weapon Ripper Piercing Weapon Spear Build | -11 -10 -10 -10 -9 -8 -8 -7 -7 -7 -6 -6 -6 ------- Run | Yrd Mat Min Exi Min Mat Sto Fac Low Low Fac Was Fac Slots Evolved 8 | . . . . . 4 . 2 . . 2 . . Power . | . . . . . . . . . . . . . Propulsion 4 | . . . . . . . 2 . . 2 . . Utility 4 | . . . . . 4 . . . . . . . Weapon . | . . . . . . . . . . . . . Parts Attached 162 | 9 9 1 . 8 27 19 22 11 7 9 3 37 Power 17 | 2 . . . 1 3 4 . 1 1 1 . 4 Engine 10 | 2 . . . 1 2 2 . . . . . 3 Core 7 | . . . . . 1 2 . 1 1 1 . 1 Reactor . | . . . . . . . . . . . . . Propulsion 63 | 2 4 . . 2 6 6 8 9 5 4 . 17 Treads 23 | 2 4 . . 2 6 4 5 . . . . . Leg . | . . . . . . . . . . . . . Wheel . | . . . . . . . . . . . . . Hover 13 | . . . . . . . . . . 4 . 9 Flight 27 | . . . . . . 2 3 9 5 . . 8 Utility 55 | 2 3 1 . 2 14 4 11 1 . 2 2 13 Device 20 | 1 2 1 . 1 4 2 3 . . . . 6 Storage 6 | 1 1 . . . 1 . 1 . . 1 . 1 Processor 7 | . . . . 1 2 . . . . . 1 3 Hackware 9 | . . . . . . . 5 . . . 1 3 Protection 13 | . . . . . 7 2 2 1 . 1 . . Artifact . | . . . . . . . . . . . . . Weapon 27 | 3 2 . . 3 4 5 3 . 1 2 1 3 Energy Gun 8 | 3 1 . . . 2 2 . . . . . . Energy Cannon 5 | . 1 . . 2 1 . . . . . 1 . Ballistic Gun 3 | . . . . . 1 1 . . 1 . . . Ballistic Cannon 3 | . . . . . . . 2 . . . . 1 Launcher 1 | . . . . 1 . . . . . . . . Special Weapon . | . . . . . . . . . . . . . Impact Weapon . | . . . . . . . . . . . . . Slashing Weapon 6 | . . . . . . 2 1 . . 2 . 1 Piercing Weapon 1 | . . . . . . . . . . . . 1 Special Melee Weapon . | . . . . . . . . . . . . . Unidentified Prototypes 14 | . 1 . . . 3 5 . . . . . 5 Parts Lost 52 | . 1 . . 2 12 7 3 1 10 . . 16 Power 9 | . . . . . 2 1 . 1 2 . . 3 Propulsion 15 | . . . . 1 2 2 1 . 4 . . 5 Utility 22 | . 1 . . 1 6 4 2 . 3 . . 5 Weapon 6 | . . . . . 2 . . . 1 . . 3 Highest Loss Streak 10 | . 1 . . 2 4 5 3 1 10 . . 9 To Critical Strikes . | . . . . . . . . . . . . . Average Slot Usage (%) 93 | . 99 100 100 99 94 94 95 96 71 49 67 72 Engine 8 | . 14 14 14 14 5 1 7 2 . . . 4 Core 1 | . . . . . 3 5 . 4 5 4 6 1 Treads 20 | . 27 28 28 27 17 16 27 3 . . . . Hover 2 | . . . . . . . . . . 13 20 19 Flight 1 | . . . . . . . . 23 24 4 . . Device 9 | . 13 14 14 10 7 10 9 . . . . 3 Storage 10 | . 14 14 14 14 9 9 7 7 7 6 6 5 Processor 5 | . . . . 2 18 17 . . . . 4 3 Hackware 6 | . . . . . . . 24 30 26 13 18 24 Protection 4 | . . . . . 14 15 1 7 4 3 4 . Energy Gun 7 | . 22 14 14 . 6 7 3 . . . . . Energy Cannon 8 | . 5 14 14 26 10 . . . . . . . Ballistic Cannon 1 | . . . . . . . 6 14 . . . . Slashing Weapon 1 | . . . . . . 6 1 . . 3 6 3 Naked Turns . | . . . . . . . . . . . . . Heaviest Build 105 | 15 93 93 93 94 102 105 99 36 18 52 52 57 Greatest Support 88 | 40 40 40 40 43 43 40 88 68 19 60 60 60 Greatest Overweight (x) 17 | . 2 2 2 2 2 5 1 9 5 17 . 1 Average Overweight (x) . | . 1 2 2 2 2 3 . . . . . . Largest Inventory Capacity 25 | 8 25 25 25 25 25 25 25 10 10 20 20 20 Average Capacity 22 | 7 22 25 25 25 25 25 17 10 10 15 20 19 Most Carried 25 | 6 25 25 25 25 25 25 25 10 10 20 20 20 Average Carried 21 | 2 18 24 24 24 23 24 15 9 9 14 19 19 Final Capacity 25 | 8 25 25 25 25 25 25 10 10 10 20 20 5 Final Carried 25 | 6 25 25 25 25 25 25 10 10 7 20 20 5 Class Distribution -------------------- 53% | Mutant 18% | Hacker-Mutant 11% | Commander-Mutant 7% | Scavenger-Mutant 3% | Hacker-Skirmisher Dominant Class ---------------- Mutant | -10/Materials Mutant | -10/Mines Mutant | -10/Exiles Mutant | -9/Mines Scavenger-Mutant | -8/Materials Commander-Mutant | -8/Storage Hacker-Skirmisher | -7/Factory Hacker-Mutant | -7/Lower Caves Hacker-Sprinter | -7/Lower Caves Hacker-Mutant | -6/Factory Hacker-Mutant | -6/Waste Hacker-Mutant | -6/Factory Resources | -11 -10 -10 -10 -9 -8 -8 -7 -7 -7 -6 -6 -6 ----------- Run | Yrd Mat Min Exi Min Mat Sto Fac Low Low Fac Was Fac Matter Collected 2502 | 290 220 30 . 82 286 380 342 309 41 48 . 474 Remotely . | . . . . . . . . . . . . . Salvage Created 4327 | 151 714 23 . 157 1605 622 207 34 43 48 . 723 Parts 245 | 14 46 3 . 9 70 36 16 2 4 2 . 43 Haulers Intercepted 8 | . 2 . . . 3 2 . . . . . 1 Recyclers Shooed 4 | . 2 . . . . 1 . . . . . 1 Parts Field Recycled . | . . . . . . . . . . . . . Retrieved Matter . | . . . . . . . . . . . . . Parts Self-Destructed 10 | . . . . . . . . 7 3 . . . Prevented 1 | . . . . . . . . 1 . . . . Kills | -11 -10 -10 -10 -9 -8 -8 -7 -7 -7 -6 -6 -6 ------- Run | Yrd Mat Min Exi Min Mat Sto Fac Low Low Fac Was Fac Combat Hostiles Destroyed 58 | . 11 . . 7 19 9 4 2 2 . . 4 Melee 2 | . . . . . . . . . . . . 2 Guns 26 | . 10 . . . 5 9 . . 2 . . . Cannons 25 | . . . . 5 12 . 4 2 . . . 2 AOE 2 | . . . . 2 . . . . . . . . Classes Destroyed 17 | 2 6 . . 3 1 2 1 1 . . . 1 Worker 8 | . 2 1 . 1 1 1 . . . . . 2 Builder 12 | . 1 . . . 2 1 1 . . 2 . 5 Tunneler 11 | 4 1 . . 2 2 1 . . . . . 1 Hauler 8 | . 2 . . . 3 2 . . . . . 1 Recycler 6 | 1 . . . . 3 . 1 . . . . 1 Mechanic 1 | . . . . . . 1 . . . . . . Operator 9 | . 2 . . . 2 2 . . . . . 3 Watcher 7 | . 2 . . . 2 . . . . . . 3 Swarmer 4 | . . . . 1 . . . 1 2 . . . Grunt 36 | . 11 . . 2 15 5 2 . . . . 1 Duelist 2 | . . . . . . 2 . . . . . . Sentry 5 | . . . . . 4 . . . . . . 1 Demolisher 4 | . . . . 2 . 2 . . . . . . Specialist 1 | . . . . . . . . . . . . 1 Programmer 3 | . . . . . . . 2 . . . . 1 Assembled 3 | . . . . 3 . . . . . . . . Mutant 1 | . . . . . . . . 1 . . . . Best Kill Streak 4 | 4 4 1 . 4 4 3 3 1 2 2 . 3 Combat Bots Only 3 | . 2 . . 3 3 3 3 1 2 . . 2 Max Kills in Single Turn 2 | 1 1 1 . 2 2 1 1 1 1 1 . 1 Gunslinging . | . . . . . . . . . . . . . Exploded 1 | . . . . 1 . . . . . . . . Melee 1 | . . . . . . . . . . . . 1 Uniques/NPCs Destroyed . | . . . . . . . . . . . . . Combat | -11 -10 -10 -10 -9 -8 -8 -7 -7 -7 -6 -6 -6 -------- Run | Yrd Mat Min Exi Min Mat Sto Fac Low Low Fac Was Fac Hostile Shots Fired 844 | . 51 3 . 24 137 48 57 27 68 . 2 427 Missed 310 | . 14 . . 1 42 6 18 14 21 . 1 193 Damage Taken 8161 | . 484 42 . 601 1476 1422 618 209 742 . 37 2530 Core 1994 | . 123 27 . 85 245 286 93 38 239 . . 858 Absorbed by Shields 30 | . . . . . . . . . . . . 30 Redirected to Shielding 101 | . . . . . 53 48 . . . . . . Regen/Repaired (Parts) 2202 | . 168 . . . 120 . . . . 29 . 1885 Core Remaining (%) 39 | 100 . . . 6 . 3 . . 47 . . . Volleys Fired 277 | 9 61 4 . 19 90 35 36 7 4 . . 12 Largest 2 | 2 2 2 . 2 2 2 2 2 1 . . 1 Hottest 137 | 100 133 133 . 136 137 94 92 92 24 . . 53 Shots Fired 515 | 18 119 8 . 36 181 70 53 14 4 . . 12 Gun 287 | 18 113 4 . . 76 70 2 . 4 . . . Cannon 226 | . 6 4 . 34 105 . 51 14 . . . 12 Launcher 2 | . . . . 2 . . . . . . . . Special . | . . . . . . . . . . . . . Kinetic 123 | . . . . . 7 34 52 14 4 . . 12 Thermal 389 | 17 119 8 . 34 174 36 1 . . . . . Explosive 2 | . . . . 2 . . . . . . . . Electromagnetic 1 | 1 . . . . . . . . . . . . Robot Hit Streak 16 | 5 11 3 . 5 16 15 4 10 4 . . 7 Robot Miss Streak 8 | 1 5 3 . 2 3 3 8 1 1 . . 2 Penetration Max . | . . . . . . . . . . . . . Secondary Targets 2 | . 1 . . . . 1 . . . . . . Max Gunslinging Chain 1 | . 1 . . . . 1 . . . . . . Shots Hit Robots 394 | 10 79 4 . 20 131 61 23 10 4 2 . 50 Core Hits 171 | 6 36 3 . 11 53 22 8 3 4 2 . 23 Critical Kills 2 | . . . . . 2 . . . . . . . Critical Parts Destroyed . | . . . . . . . . . . . . . Critical Strikes 19 | . 8 . . . 5 1 2 1 . . . 2 Burn 12 | . 8 . . . 3 1 . . . . . . Meltdown 2 | . . . . . 2 . . . . . . . Blast 3 | . . . . . . . 2 1 . . . . Impale 2 | . . . . . . . . . . . . 2 Melee Attacks 113 | . . . . . . 17 1 . . 2 . 93 Impact . | . . . . . . . . . . . . . Slashing 68 | . . . . . . 17 1 . . 2 . 48 Piercing 45 | . . . . . . . . . . . . 45 Sneak Attacks 25 | . . . . . . 8 . . . 2 . 15 Combat Hostiles . | . . . . . . . . . . . . . Follow-up Attacks 1 | . . . . . . . . . . . . 1 Damage Inflicted 9973 | 152 1078 82 . 717 2749 1643 771 258 85 157 . 2281 Guns 3418 | 152 1057 42 . . 1111 955 16 . 85 . . . Cannons 3384 | . 21 40 . 412 1637 . 755 258 . . . 261 Explosions 305 | . . . . 305 . . . . . . . . Melee 2865 | . . . . . . 688 . . . 157 . 2020 Ramming 1 | . . . . . 1 . . . . . . . Kinetic 1911 | . . . . . 72 464 771 258 85 . . 261 Thermal 5034 | 152 1078 82 . 555 2676 491 . . . . . . Explosive 162 | . . . . 162 . . . . . . . . Electromagnetic . | . . . . . . . . . . . . . Impact . | . . . . . . . . . . . . . Slashing 2103 | . . . . . . 688 . . . 157 . 1258 Piercing 762 | . . . . . . . . . . . . 762 Highest Corruption 3 | . . . . . 1 3 1 1 1 . . 2 Average Corruption 1 | . . . . . 1 2 1 1 1 . . 1 Corruption Purged 5 | . . . . . . 3 . . . . . 2 Corruption Blocked . | . . . . . . . . . . . . . Effects 70 | . . . . . 16 31 5 4 1 . . 13 Message Errors 11 | . . . . . 2 5 1 2 . . . 1 Matter Fused 19 | . . . . . 3 10 1 1 . . . 4 Heat Flow Errors 10 | . . . . . 4 3 1 . . . . 2 Energy Discharges 9 | . . . . . . 6 . 1 1 . . 1 Parts Fused 1 | . . . . . 1 . . . . . . . Data Loss (minor) 11 | . . . . . 4 5 1 . . . . 1 Data Loss (major) 5 | . . . . . 1 1 . . . . . 3 Misfires 3 | . . . . . 1 1 1 . . . . . Alerts 1 | . . . . . . . . . . . . 1 Overload Shots . | . . . . . . . . . . . . . Overflow Damage 906 | . . . . 13 4 176 51 . . . . 662 Projectiles 68 | . . . . 13 4 . 51 . . . . . Explosions . | . . . . . . . . . . . . . Melee 838 | . . . . . . 176 . . . . . 662 Knockbacks 8 | . . . . . . . 8 . . . . . Impact . | . . . . . . . . . . . . . Kinetic 8 | . . . . . . . 8 . . . . . Secondary . | . . . . . . . . . . . . . Self-Inflicted Damage 87 | . . . . 87 . . . . . . . . Shots 2 | . . . . 2 . . . . . . . . Rammed 2 | . . . . . 1 1 . . . . . . Targets Rammed 2 | . . . . . 1 1 . . . . . . Kicked . | . . . . . . . . . . . . . Crushed . | . . . . . . . . . . . . . Highest Temperature 398 | 78 398 141 . 362 315 229 242 27 . . . 271 Average Temperature 91 | 37 108 64 . 112 95 44 99 7 . . . 74 Received Heat Transfer 2299 | . 291 24 . 40 900 207 261 12 24 . . 540 Effects 6 | . . . . . 4 2 . . . . . . Energy Bleed 4 | . . . . . 4 . . . . . . . Interference 2 | . . . . . . 2 . . . . . . Siege Activations . | . . . . . . . . . . . . . Robots Corrupted . | . . . . . . . . . . . . . Combat Hostiles . | . . . . . . . . . . . . . Parts Fried . | . . . . . . . . . . . . . Impact Corruptions . | . . . . . . . . . . . . . Robots Melted 3 | . 1 . . . 2 . . . . . . . Combat Hostiles 3 | . 1 . . . 2 . . . . . . . Parts Melted 21 | . 3 . . 4 11 3 . . . . . . Heat Transferred 11202 | 444 3589 185 . 990 5069 925 . . . . . . Parts Sabotaged . | . . . . . . . . . . . . . Parts Stolen . | . . . . . . . . . . . . . Parts Stripped . | . . . . . . . . . . . . . Power Chain Reactions . | . . . . . . . . . . . . . Alert | -11 -10 -10 -10 -9 -8 -8 -7 -7 -7 -6 -6 -6 ------- Run | Yrd Mat Min Exi Min Mat Sto Fac Low Low Fac Was Fac Peak Influence 235 | 25 235 53 . 132 136 230 110 . . 21 22 177 Initial 75 | . 16 . . . . 21 75 . . 9 7 15 Average 48 | 8 45 13 . 32 46 79 51 . . 17 19 62 Maximum Alert Level 1 | . 1 . . . . 1 . . . . . . Low Security (%) 98 | 100 95 100 . 100 100 98 100 . . 100 100 100 Level 1 1 | . 4 . . . . 1 . . . . . . Level 2 . | . . . . . . . . . . . . . Level 3 . | . . . . . . . . . . . . . Level 4 . | . . . . . . . . . . . . . Level 5 . | . . . . . . . . . . . . . High Security . | . . . . . . . . . . . . . Max Security . | . . . . . . . . . . . . . Squads Dispatched 25 | . 3 . . . 3 6 4 . . . . 9 Investigation 10 | . 1 . . . 1 2 1 . . . . 5 Extermination 3 | . . . . . . . 2 . . . . 1 Reinforcement 10 | . 2 . . . 2 2 1 . . . . 3 Assault 2 | . . . . . . 2 . . . . . . Garrison . | . . . . . . . . . . . . . Intercept . | . . . . . . . . . . . . . Searches Triggered . | . . . . . . . . . . . . . Construction Impeded 1 | . . . . . . 1 . . . . . . Haulers Reinforced . | . . . . . . . . . . . . . Active Scanning Responses . | . . . . . . . . . . . . . Cargo Convoy Interrupts 1 | . . . . . . . . . . . . 1 Stealth | -11 -10 -10 -10 -9 -8 -8 -7 -7 -7 -6 -6 -6 --------- Run | Yrd Mat Min Exi Min Mat Sto Fac Low Low Fac Was Fac Distress Signals 5 | . 1 . . . 1 1 1 . . . . 1 Communications Jammed . | . . . . . . . . . . . . . Distress Signals . | . . . . . . . . . . . . . Times Spotted 169 | . 21 2 . 8 33 28 8 6 7 . 6 50 Peak Tracking Total 19 | . 2 2 . 3 7 10 4 4 6 . 6 19 Tactical Retreats 16 | . 1 . . . 3 . 1 1 2 . . 8 Traps | -11 -10 -10 -10 -9 -8 -8 -7 -7 -7 -6 -6 -6 ------- Run | Yrd Mat Min Exi Min Mat Sto Fac Low Low Fac Was Fac Traps Triggered 9 | . 3 . . . . 2 . . . 1 . 3 Indirectly . | . . . . . . . . . . . . . Trap Hack Attempts . | . . . . . . . . . . . . . Triggered . | . . . . . . . . . . . . . Disarmed . | . . . . . . . . . . . . . Reprogrammed . | . . . . . . . . . . . . . Reused . | . . . . . . . . . . . . . Traps Extracted . | . . . . . . . . . . . . . Installed . | . . . . . . . . . . . . . Triggered 2 | . . . . . . . . 2 . . . . Machines | -11 -10 -10 -10 -9 -8 -8 -7 -7 -7 -6 -6 -6 ---------- Run | Yrd Mat Min Exi Min Mat Sto Fac Low Low Fac Was Fac Machines Disabled 8 | . . . . 4 1 1 1 1 . . . . Max in Single Turn 4 | . . . . 4 1 1 1 1 . . . . Garrison Access 4 | . . . . . . 1 . . . . . 3 Machines Repaired . | . . . . . . . . . . . . . Machines Dismantled . | . . . . . . . . . . . . . Machines Sabotaged . | . . . . . . . . . . . . . Overloaded Fab Kills . | . . . . . . . . . . . . . Hacking | -11 -10 -10 -10 -9 -8 -8 -7 -7 -7 -6 -6 -6 --------- Run | Yrd Mat Min Exi Min Mat Sto Fac Low Low Fac Was Fac Machines Accessed 40 | . 6 . 1 . 3 6 4 . . 1 . 19 Terminals 22 | . 4 . . . 2 5 3 . . . . 8 Fabricators 4 | . . . . . . . 1 . . . . 3 Repair Stations 4 | . 1 . . . 1 . . . . 1 . 1 Recycling Units 3 | . 1 . . . . . . . . . . 2 Scanalyzers 2 | . . . . . . . . . . . . 2 Garrison Access 4 | . . . . . . 1 . . . . . 3 Total Hacks 132 | . 14 . 1 . 8 15 12 . . 2 . 80 Successful 93 | . 10 . 1 . 5 9 7 . . 2 . 59 Failed 39 | . 4 . . . 3 6 5 . . . . 21 Catastrophic 4 | . 1 . . . . . . . . . . 3 Database Lockouts . | . . . . . . . . . . . . . Manual 60 | . 9 . 1 . 4 6 10 . . . . 30 Terminals 69 | . 9 . . . 5 11 10 . . . . 34 Fabricators 12 | . . . . . . . 2 . . . . 10 Repair Stations 14 | . 4 . . . 3 . . . . 2 . 5 Recycling Units 5 | . 1 . . . . . . . . . . 4 Scanalyzers 22 | . . . . . . . . . . . . 22 Garrison Access 9 | . . . . . . 4 . . . . . 5 Terminal Hacks 20 | . 1 . 1 . 1 3 2 . . . . 12 Record 2 | . . . . . 1 . . . . . . 1 Part Schematic 2 | . . . . . . . . . . . . 2 Robot Schematic 2 | . . . . . . 1 . . . . . 1 Open Door 2 | . . . . . . 2 . . . . . . Terminal Index 3 | . 1 . . . . . 1 . . . . 1 Scanalyzer Index 1 | . . . . . . . . . . . . 1 Unreport Threat 2 | . . . . . . . 1 . . . . 1 Patrol Status 1 | . . . . . . . . . . . . 1 Recall Investigation 1 | . . . . . . . . . . . . 1 Recall Reinforcements 2 | . . . . . . . . . . . . 2 Registered Prototypes 1 | . . . . . . . . . . . . 1 Derelict Proto ID Bank 1 | . . . 1 . . . . . . . . . Fabricator Hacks 9 | . . . . . . . 2 . . . . 7 Load Schematic 5 | . . . . . . . 1 . . . . 4 Build 4 | . . . . . . . 1 . . . . 3 Repair Station Hacks 12 | . 4 . . . 2 . . . . 2 . 4 Scan Component 6 | . 2 . . . 1 . . . . 1 . 2 Repair 6 | . 2 . . . 1 . . . . 1 . 2 Recycling Unit Hacks 3 | . 1 . . . . . . . . . . 2 Retrieve Components 3 | . 1 . . . . . . . . . . 2 Scanalyzer 22 | . . . . . . . . . . . . 22 Insert Component 10 | . . . . . . . . . . . . 10 Analyze 12 | . . . . . . . . . . . . 12 Garrison Access Hacks 4 | . . . . . . 1 . . . . . 3 Seal Access 4 | . . . . . . 1 . . . . . 3 Unauthorized Hacks 23 | . 4 . . . 2 5 3 . . . . 9 Terminals 23 | . 4 . . . 2 5 3 . . . . 9 Assimilate 3 | . . . . . . 2 . . . . . 1 Botnet 18 | . 3 . . . 2 3 3 . . . . 7 Operators 2 | . 1 . . . . . . . . . . 1 Fabricators . | . . . . . . . . . . . . . Repair Stations . | . . . . . . . . . . . . . Recycling Units . | . . . . . . . . . . . . . Scanalyzers . | . . . . . . . . . . . . . Garrison Access . | . . . . . . . . . . . . . Data Cores Recovered 4 | . . . . . . 1 . . . . . 3 Used . | . . . . . . . . . . . . . Hacking Detections 33 | . 5 . . . 3 4 4 . . . . 17 Full Trace Events 10 | . 1 . . . 1 2 1 . . . . 5 Feedback Events 2 | . . . . . 1 1 . . . . . . Corruption 2 | . . . . . 1 1 . . . . . . Feedback Blocked . | . . . . . . . . . . . . . Robot Schematics Acquired 2 | . . . . . . 1 . . . . . 1 Robots Built 2 | . . . . . . . 2 . . . . . Authchips . | . . . . . . . . . . . . . Time 58 | . . . . . . . 58 . . . . . Total Robot Build Rating 6 | . . . . . . . 6 . . . . . Part Schematics Acquired 12 | . . . . . . . . . . . . 12 Parts Built 3 | . . . . . . . . . . . . 3 Authchips . | . . . . . . . . . . . . . Time 306 | . . . . . . . . . . . . 306 Total Part Build Rating 24 | . . . . . . . . . . . . 24 Parts Repaired 6 | . 2 . . . 1 . . . . 1 . 2 Time 304 | . 52 . . . 32 . . . . 44 . 176 Parts Recycled . | . . . . . . . . . . . . . Recycled Matter . | . . . . . . . . . . . . . Retrieved Matter . | . . . . . . . . . . . . . Retrieved Components 14 | . 3 . . . . . . . . . . 11 Parts Scanalyzed 10 | . . . . . . . . . . . . 10 Part Schematics Acquired 10 | . . . . . . . . . . . . 10 Parts Damaged 2 | . . . . . . . . . . . . 2 Bothacking | -11 -10 -10 -10 -9 -8 -8 -7 -7 -7 -6 -6 -6 ------------ Run | Yrd Mat Min Exi Min Mat Sto Fac Low Low Fac Was Fac Used RIF Installer . | . . . . . . . . . . . . . Robots Hacked . | . . . . . . . . . . . . . Non-combat . | . . . . . . . . . . . . . Combat . | . . . . . . . . . . . . . Robot Hacks Applied . | . . . . . . . . . . . . . Relay Couplers Released . | . . . . . . . . . . . . . Fabnet Peak Effective % . | . . . . . . . . . . . . . Robots Rewired . | . . . . . . . . . . . . . Allies Hacked . | . . . . . . . . . . . . . Hacks Repelled . | . . . . . . . . . . . . . Allies | -11 -10 -10 -10 -9 -8 -8 -7 -7 -7 -6 -6 -6 -------- Run | Yrd Mat Min Exi Min Mat Sto Fac Low Low Fac Was Fac Total Allies 18 | . . 1 . 3 . 12 2 . . . . . Largest Group 10 | . . 1 . 3 1 10 2 2 . . . . Highest-Rated Group 173 | . . 31 . 40 16 173 42 42 . . . . Highest-Rated Ally 31 | . . 31 . 16 16 31 21 21 . . . . Total Orders . | . . . . . . . . . . . . . Ally Attacks 179 | . . 5 . 13 2 143 6 10 . . . . Total Damage 2544 | . . 64 . 155 15 2016 109 185 . . . . Kills 29 | . . 2 . 1 . 21 2 3 . . . . Allies Corrupted 1 | . . . . . . 1 . . . . . . Allies Melted . | . . . . . . . . . . . . . Intel | -11 -10 -10 -10 -9 -8 -8 -7 -7 -7 -6 -6 -6 ------- Run | Yrd Mat Min Exi Min Mat Sto Fac Low Low Fac Was Fac Robot Analysis Total . | . . . . . . . . . . . . . Derelict Logs Recovered 7 | . . 2 . 1 . . . 1 3 . . . Drone Launches . | . . . . . . . . . . . . . Drone Recoveries . | . . . . . . . . . . . . . Exploration | -11 -10 -10 -10 -9 -8 -8 -7 -7 -7 -6 -6 -6 ------------- Run | Yrd Mat Min Exi Min Mat Sto Fac Low Low Fac Was Fac Turns Passed 14048 | 132 2454 1078 706 2120 1676 2114 1250 432 128 123 68 1767 Spaces Moved 6841 | 57 750 333 221 640 400 431 580 368 391 102 115 2453 Core 6 | 3 . . . . . . . 1 1 1 . . Treads 3445 | 54 750 333 221 640 400 431 580 36 . . . . Legs . | . . . . . . . . . . . . . Wheels . | . . . . . . . . . . . . . Hover 2542 | . . . . . . . . . . 40 115 2387 Flight 848 | . . . . . . . . 331 390 61 . 66 Fastest Speed 26 | 50 160 320 320 320 320 320 160 26 26 32 52 29 Average Speed 179 | 154 288 320 320 320 320 446 192 104 28 57 52 51 Slowest Speed 900 | 160 320 320 320 320 320 560 240 500 300 900 52 106 Overloaded Moves . | . . . . . . . . . . . . . Propulsion Burnouts . | . . . . . . . . . . . . . Robots Hopped 4 | . . . . . . . . . . . . 4 Cave-ins Triggered . | . . . . . . . . . . . . . Exploration Rate (%) 50 | 5 89 70 60 98 30 58 11 49 49 4 75 58 Regions Visited 12 Branch Regions 6 Pre-discovered Areas 2 | . . . . . . . . . 2 . . . Known Exits Taken 4 | . . . . 1 1 1 . 1 . . . . Unknown Exits Taken 6 | 1 1 1 1 . . . 1 . 1 . . . Scrap Searched 4 | . . . . 2 . . . 2 . . . . Spaces Dug 50 | . . . . 11 . . 1 . . . . 38 Terrain Destroyed 86 | . . . . 38 3 4 3 . . . . 38 Melee 39 | . . . . . . . 1 . . . . 38 Projectile 9 | . . . . . 3 4 2 . . . . . AOE 38 | . . . . 38 . . . . . . . . Terrain Rammed . | . . . . . . . . . . . . . Walls Destroyed . | . . . . . . . . . . . . . Machines Disabled . | . . . . . . . . . . . . . Actions | -11 -10 -10 -10 -9 -8 -8 -7 -7 -7 -6 -6 -6 --------- Run | Yrd Mat Min Exi Min Mat Sto Fac Low Low Fac Was Fac Total 7979 | 79 928 340 222 678 628 540 665 403 404 171 123 2798 Wait 329 | . 66 . . 2 54 19 2 5 . 47 . 134 Move 6823 | 56 749 332 220 639 399 430 579 367 390 102 114 2446 Hop 3 | . . . . . . . . . . . . 3 Pick Up 140 | 5 30 1 1 5 33 10 11 3 . 8 3 30 Fast Attach 58 | 7 6 . . 1 3 1 4 6 4 4 1 21 Attach 57 | . . . . 1 16 7 10 4 3 4 2 10 Detach 18 | . . . . . 2 1 5 1 . 3 . 6 Swap 47 | 2 3 1 . 6 8 11 8 1 . 1 . 6 Drop 106 | . 13 2 1 5 22 8 9 9 3 . 3 31 Fire 277 | 9 61 4 . 19 90 35 36 7 4 . . 12 Melee 111 | . . . . . . 17 1 . . 2 . 91 Ram . | . . . . . . . . . . . . . Kick . | . . . . . . . . . . . . . Crush 2 | . . . . . 1 1 . . . . . . Escape Stasis 8 | . . . . . . . . . . . . 8 Rewire . | . . . . . . . . . . . . . Trap . | . . . . . . . . . . . . . Miscellaneous . | . . . . . . . . . . . . . Route ------- -11/Scrapyard -10/Materials (discovered 4 exits: [*Mat x2] / [*Min x2]) -10/Mines (discovered 4 exits: [*Mat x2] / *Exi / Sub) -10/Exiles -9/Mines (discovered 2 exits: *Mat x2) -8/Materials (discovered 2 exits: *Fac / *Sto) -8/Storage -7/Factory -7/Lower Caves -7/Lower Caves -6/Factory -6/Waste -6/Factory (discovered 2 exits: [*Fac] / *Low) History --------- Turn | Location | Event 29 | -11/Scrapyard | Discovered new exit (range 16) 133 | -11/Scrapyard | Entered Materials 305 | -10/Materials | Build established: Mutant 457 | -10/Materials | Discovered new exit (range 15) 977 | -10/Materials | Discovered new exit (range 7) 1039 | -10/Materials | Repaired Lgt. Treads 1066 | -10/Materials | Repaired Lgt. Treads 1890 | -10/Materials | Discovered new exit (range 6) 1954 | -10/Materials | Discovered new exit (range 6) 2587 | -10/Materials | Entered Mines 2590 | -10/Mines | Received a Mining Laser from a helpful Derelict 2645 | -10/Mines | Discovered new exit (range 15) 2712 | -10/Mines | Discovered new exit (range 11) 2715 | -10/Mines | Identified exit to Subcaves 2731 | -10/Mines | Core integrity fell below 50% 3418 | -10/Mines | Received a Rocket Launcher from a helpful Derelict 3652 | -10/Mines | Deemed a non-threat by the Exiles lab entrance 3652 | -10/Mines | Discovered new exit (range 5) 3665 | -10/Mines | Entered Exiles 3742 | -10/Exiles | Met 8R-AWN 3790 | -10/Exiles | Met EX-HEX 3883 | -10/Exiles | Met EX-BIN 3925 | -10/Exiles | Aligned with FarCom system 3928 | -10/Exiles | Given EX-Vault access code 4008 | -10/Exiles | Opened EX-Vault 4031 | -10/Exiles | Found 0b10 Alert Chip 4102 | -10/Exiles | Warned to stay clear of 0b10 Research branches 4189 | -10/Exiles | Met EX-DEC 4345 | -10/Exiles | Discovered new exit (range 10) 4371 | -10/Exiles | Left Exiles lab with 0b10 Alert Chip 4371 | -10/Exiles | Entered Mines 4376 | -9/Mines | Assembled infested the area 4381 | -9/Mines | Assisted by a Guerilla fighting off Assembled 4389 | -9/Mines | Met a Derelict bent on vengeance 4445 | -9/Mines | Found a damaged Exp. Sensor Array with a note attached 4452 | -9/Mines | Found Prototype Device 4686 | -9/Mines | Core integrity fell below 20% 5240 | -9/Mines | Discovered new exit (range 13) 5304 | -9/Mines | A weapon hastily lodged in a ceiling crevice suddenly fell to the ground 5462 | -9/Mines | Assisted by bots powering up and referring to "LRC-V3" 5506 | -9/Mines | Discovered new exit (range 12) 6082 | -9/Mines | Identified exit to Materials 6491 | -9/Mines | Entered Materials 6491 | -8/Materials | Accompanied by 1 ally 6491 | -8/Materials | Evolved 4 slots: Utility x4 6492 | -8/Materials | Identified exit to Factory 6492 | -8/Materials | Identified exit to Storage 6617 | -8/Materials | Repaired Imp. Treads 6722 | -8/Materials | Identified Exp. Sensor Array 7088 | -8/Materials | Lost 4 parts (1n2u1w) 7317 | -8/Materials | Build established: Scavenger-Mutant 7684 | -8/Materials | Build established: Mutant 8038 | -8/Materials | Build established: Scavenger-Mutant 8167 | -8/Materials | Entered Storage 8178 | -8/Storage | Core integrity fell below 50% 8285 | -8/Storage | Assisted by bots powering up and referring to "LRC-V3" 8582 | -8/Storage | Build established: Commander-Mutant 9840 | -8/Storage | Discovered exit to Factory (range 9) 9881 | -8/Storage | Met a pair of Derelict thieves 9964 | -8/Storage | Core integrity fell below 20% 9989 | -8/Storage | Lost 7 allies 10001 | -8/Storage | Lost 5 parts (2n3u) 10201 | -8/Storage | Build established: Mutant 10281 | -8/Storage | Entered Factory 10281 | -7/Factory | Evolved 2 slots: Propulsion x2 10666 | -7/Factory | Build established: Hacker-Skirmisher 11227 | -7/Factory | Lost 3 parts (1n2u) 11343 | -7/Factory | Fabricated H-55 Commando? 11462 | -7/Factory | Discovered new exit (range 15) 11501 | -7/Factory | Build established: Hacker-Mutant 11531 | -7/Factory | Entered Lower Caves 11531 | -7/Lower Caves | Accompanied by 2 allies 11644 | -7/Lower Caves | Attacked by a delusional Derelict stockpiling parts 11854 | -7/Lower Caves | Identified exit to Lower Caves 11960 | -7/Lower Caves | Attracted the attention of an 0b10 checkpoint 11963 | -7/Lower Caves | Entered another Lower Caves area 11991 | -7/Lower Caves | Spotted B-75 Beast 12018 | -7/Lower Caves | Learned location of 1 exit from Factory 12084 | -7/Lower Caves | Core integrity fell below 50% 12087 | -7/Lower Caves | Learned location of Zion (-6) 12089 | -7/Lower Caves | Discovered new exit (range 8) 12091 | -7/Lower Caves | Entered Factory 12091 | -6/Factory | Evolved 2 slots: Propulsion x2 12092 | -6/Factory | Identified exit to Lower Caves 12104 | -6/Factory | Lost 10 parts (2p4n3u1w) 12211 | -6/Factory | Repaired Ripper 12214 | -6/Factory | Sucked down chute 12214 | -6/Factory | Entered Waste 12223 | -6/Waste | Spotted C-40 Crusher 12251 | -6/Waste | Spotted C-40 Crusher 12256 | -6/Waste | Spotted C-40 Crusher 12262 | -6/Waste | Spotted C-40 Crusher 12264 | -6/Waste | Spotted C-40 Crusher 12266 | -6/Waste | Spotted C-40 Crusher 12268 | -6/Waste | Crushed by Compactor (0 parts destroyed, 1 dropped) 12271 | -6/Waste | Discovered new exit (range 16) 12282 | -6/Waste | Entered Factory 12756 | -6/Factory | Discovered new exit (range 16) 12821 | -6/Factory | Discovered exit to Lower Caves (range 5) 13222 | -6/Factory | Repaired Imp. Diametric Drive? 13233 | -6/Factory | Fabricated Imp. Diametric Drive (x1) 13310 | -6/Factory | Repaired Hvy. Armored Exoskeleton 13944 | -6/Factory | Fabricated Imp. Diametric Drive? 13960 | -6/Factory | Cargo convoy interrupted 13976 | -6/Factory | Fabricated Imp. Diametric Drive? 14024 | -6/Factory | Core integrity fell below 50% 14028 | -6/Factory | Core integrity fell below 20% 14049 | -6/Factory | Destroyed by G-50 Soldier with Heavy Laser Last Messages --------------- 14024_ Gravmag Array destroyed. 14024_ Critical hit (Burn: +37). 14024_ Slug penetrates H-66 Slayer. 14024_ H-66 Slayer suffers critical hit (Destroy). 14024_ H-66 Slayer destroyed. 14024_ Penetrated by Slug. 14025_ Imp. VTOL Module destroyed. 14025_ Penetrated by Slug. 14025_ Hacking Suite destroyed. 14025_ Imp. VTOL Module destroyed. 14025_ Dropped Hcp. Storage Unit. 14026_ Acquired 25 matter. 14027_ Slug penetrates M-28 Smith. 14027_ Penetrated by Slug. 14029_ M-28 Smith repairs G-50 Soldier. 14041_ Acquired 103 matter. 14044_ K-01 Serf collects debris. 14047_ Critical hit (Burn: +37). 14048_ Acquired Imp. Diametric Drive. Map ----- +----------------------------------------------------+ | # ###### """ # ##?????????????????????? | | " + % + """ / +?????????????????????? | | " ##+##+##### # [#??????????????????????? | | " # ## # ???????????????????????? | | # ##! = ! ### ##???????????????????????? | | " + #######+### ##???????????????????????? | | " # ! ####### ### ##????????? ?????????????? | | " ########"####### ### ##???????? ?????????????? | | # [ #######+### #######T #????????????? | | " # """## =# ######## #????????????? | | " # ! T"## """" # ???????????????? | | " # """## ""F" # ##?????????????????? | | # # "" = # """ ##?????????????????? | | " # """"" ## + """ ##### ##### ???????? | | " # """"" ##= """ # """ #####+##### ???????? | | " # """ ## """ # # # ???????? | | # ## !! """ + + """ """ # ?"""???? | | ####+###### ! #g ##### """ """ # ?""" ??? | | +### ############ ##### """ """ # """ ??? | | g R##### # ? | | g ##### ! + """ ""? | | g + # """ ""? | | # # """ """ | | g ########### ? | | """ """ """ """ """ g"" "" """ "?? | | """ """ """ """ """ "F@"" """ """ | | """"""" """ """ """ """"" """ """ | | " | | " ! ! | | "%" ########### | | #######+########################## # | | ????????????????################## # | | ?????????????????????????######### # | | ?????????????????????????# # # | | ????????????????########## "" # + | | ????????????????# # """ # # | | ????????????????# """= # S" # # ! | | ?########???????# "Y # """ # # | | ?# !!! #???????# """ # """ # # | | ?# !!! #???????# # # # | | ?# !!! #???????# """ # """ # # | | ?# ######### """ # """ + # ] | | ?# ! + # """ + """ # # | | ?# # # # # ########### | | ######### #####+############ ##??####### | | #????# ? [ | | ^ #????# | | ^ ###### """" | | + """" | | # """" | +----------------------------------------------------+ Best States ------------- Heat Dissipation 62 Energy Generation 18 Energy Capacity 290 Matter Stores 300 Matter Capacity 300 Sight Range 22 Robot Scan Range 20 Terrain Scan Range 16 Terrain Scan Density 10 Armor Coverage 225 Weapon Shielding 33 Evasion (%) 64 Targeting Accuracy 6 Melee Accuracy 13 Recoil Reduction 4 Offensive Hacking 30 Defensive Hacking 22 Item Schematics ----------------- Imp. System Shield | -6/Factory | Hacked Imp. Hacking Suite | -6/Factory | Hacked Imp. Diametric Drive | -6/Factory | Scanalyzed Hvy. Armored Exoskeleton | -6/Factory | Scanalyzed Gravity Neutralizer | -6/Factory | Scanalyzed Adv. ECM Suite | -6/Factory | Scanalyzed System Restoration Module | -6/Factory | Scanalyzed Imp. Reaction Control System | -6/Factory | Scanalyzed Imp. Deuterium Engine | -6/Factory | Scanalyzed Hacking Suite | -6/Factory | Scanalyzed Ripper | -6/Factory | Scanalyzed Lrg. Storage Unit | -6/Factory | Scanalyzed Robot Schematics ------------------ H-55 Commando | -8/Storage | Hacked R-10 Processor | -6/Factory | Hacked Fabricated ------------ H-55 Commando | x2 | -7/Factory Imp. Diametric Drive | x1 | -6/Factory Imp. Diametric Drive | x1 | -6/Factory Imp. Diametric Drive | x1 | -6/Factory Alien Tech Used ----------------- None Achievements -------------- None Challenges ------------ None Game ------ Seed TerrainSystemArachnoskeleton Manual? 0 Play Time 02:14:18 Cumulative 122.8 hours Start 2024.04.27 @ 06:24:23 End 2024.04.27 @ 15:40:36 Sessions 3 Manual Loads 0 Difficulty Rogue Special Mode None Game No. 139 Rogue 139 Adventurer 0 Explorer 0 Win Type - Total 0 Types 0/0/0/0/0/0/0/0/0 Lore% 29 Gallery% 57 Achievement% 41 Wizard Run 0 Options --------- Layout 1 ASCII 0 Keyboard 1 Movement Vi Keybinds 0 Fullscreen 1 Font 24/Smallcaps Map View 50x35 Zoom Use 0% Tactical HUD 1 Map Filters NONE Filters NONE Steam 1 RUN: f6b9e51f-bdbd-4e7f-95c1-19f16a118e7a